[Event "*** Titled Tuesday 3|2 Blitz (Late)"]
[Site "Chess.com"]
[Date "2016.11.01"]
[Round "8"]
[White "spirals5"]
[Black "Peroncio"]
[Result "1-0"]
[WhiteElo "2287"]
[BlackElo "2466"]
[TimeControl "180+2"]
[EndTime "18:47:58 PDT"]
[Termination "spirals5 won by checkmate"]

1. e4 {[%clk 0:03:01.9]} 1... c5 {[%clk 0:02:59.9]} 2. Nc3 {[%clk 0:03:02.9]}
2... d6 {[%clk 0:03:01.3]} 3. g3 {[%clk 0:03:04.1]} 3... g6 {[%clk 0:03:02.1]}
4. Bg2 {[%clk 0:03:05.3]} 4... Bg7 {[%clk 0:03:03.5]} 5. d3 {[%clk 0:03:06.6]}
5... Nc6 {[%clk 0:03:04.8]} 6. f4 {[%clk 0:03:07.8]} 6... Rb8 {[%clk 0:03:05.1]}
7. Nf3 {[%clk 0:03:08.6]} 7... b5 {[%clk 0:03:05.3]} 8. O-O {[%clk 0:03:09.3]}
8... b4 {[%clk 0:03:05.7]} 9. Ne2 {[%clk 0:03:09.8]} 9... a5 {[%clk 0:03:06.5]}
10. Kh1 {[%clk 0:03:10.2]} 10... e6 {[%clk 0:03:06.9]} 11. Rb1 {[%clk
0:03:06.7]} 11... Nge7 {[%clk 0:03:07]} 12. Be3 {[%clk 0:03:07.3]} 12... O-O
{[%clk 0:03:06.5]} 13. d4 {[%clk 0:03:05.6]} 13... cxd4 {[%clk 0:03:04.1]} 14.
Nexd4 {[%clk 0:03:06.2]} 14... Ba6 {[%clk 0:03:05.1]} 15. Rf2 {[%clk 0:03:05.4]}
15... Qc7 {[%clk 0:03:02.6]} 16. Rd2 {[%clk 0:03:02.1]} 16... Rfd8 {[%clk
0:03:01]} 17. Nxc6 {[%clk 0:03:02.3]} 17... Nxc6 {[%clk 0:03:00.6]} 18. Qe1
{[%clk 0:02:53.7]} 18... a4 {[%clk 0:02:58.3]} 19. Qf2 {[%clk 0:02:52.2]} 19...
Na5 {[%clk 0:02:58.4]} 20. b3 {[%clk 0:02:48.4]} 20... a3 {[%clk 0:02:55.7]} 21.
Bd4 {[%clk 0:02:42.2]} 21... Nc6 {[%clk 0:02:45.1]} 22. Bxg7 {[%clk 0:02:42.1]}
22... Kxg7 {[%clk 0:02:46.7]} 23. Rbd1 {[%clk 0:02:42.1]} 23... Kg8 {[%clk
0:02:34.3]} 24. h3 {[%clk 0:02:36.5]} 24... Ne7 {[%clk 0:02:34.9]} 25. g4 {[%clk
0:02:27.3]} 25... d5 {[%clk 0:02:35.5]} 26. e5 {[%clk 0:02:27]} 26... Rdc8
{[%clk 0:02:27]} 27. Qh4 {[%clk 0:02:22.2]} 27... Qd8 {[%clk 0:02:21.4]} 28. Ng5
{[%clk 0:02:21.9]} 28... h5 {[%clk 0:02:05.6]} 29. Ne4 {[%clk 0:01:54]} 29...
Qf8 {[%clk 0:01:43.2]} 30. Nf6+ {[%clk 0:01:54.2]} 30... Kg7 {[%clk 0:01:33.6]}
31. Nd7 {[%clk 0:01:53.7]} 31... Qe8 {[%clk 0:01:30.5]} 32. Nxb8 {[%clk
0:01:48.2]} 32... Rxb8 {[%clk 0:01:30.8]} 33. gxh5 {[%clk 0:01:47.1]} 33... Nf5
{[%clk 0:01:31.5]} 34. Qf6+ {[%clk 0:01:46.6]} 34... Kh7 {[%clk 0:01:17.7]} 35.
hxg6+ {[%clk 0:01:46.7]} 35... fxg6 {[%clk 0:01:19.6]} 36. Rg1 {[%clk
0:01:40.6]} 36... Qf8 {[%clk 0:01:15]} 37. Qxe6 {[%clk 0:01:21.2]} 37... Ng3+
{[%clk 0:01:10.9]} 38. Kh2 {[%clk 0:01:16.9]} 38... Qxf4 {[%clk 0:01:12.4]} 39.
Bxd5 {[%clk 0:00:21.1]} 39... Nf1+ {[%clk 0:00:50.1]} 40. Kh1 {[%clk 0:00:19.9]}
40... Qxd2 {[%clk 0:00:39.7]} 41. Qxg6+ {[%clk 0:00:19.4]} 41... Kh8 {[%clk
0:00:33.8]} 42. Qg7# {[%clk 0:00:19.8]} 1-0

[Event "*** Titled Tuesday 3|2 Blitz (Late)"]
[Site "Chess.com"]
[Date "2016.11.01"]
[Round "8"]
[White "PaulfromSPb"]
[Black "Gabrielian_Artur"]
[Result "1/2-1/2"]
[WhiteElo "2507"]
[BlackElo "2564"]
[TimeControl "180+2"]
[EndTime "18:48:01 PDT"]
[Termination "Game drawn by repetition"]

1. d4 {[%clk 0:03:02]} 1... Nf6 {[%clk 0:02:59.3]} 2. Bg5 {[%clk 0:03:03.1]}
2... c5 {[%clk 0:02:59.4]} 3. e3 {[%clk 0:03:02.5]} 3... e6 {[%clk 0:02:58.6]}
4. c3 {[%clk 0:03:03.1]} 4... Nc6 {[%clk 0:02:55.1]} 5. Nd2 {[%clk 0:03:04.1]}
5... d5 {[%clk 0:02:55.1]} 6. f4 {[%clk 0:03:04.5]} 6... h6 {[%clk 0:02:56]} 7.
Bxf6 {[%clk 0:03:02.8]} 7... Qxf6 {[%clk 0:02:56.2]} 8. Ngf3 {[%clk 0:03:04.7]}
8... g5 {[%clk 0:02:53.2]} 9. g3 {[%clk 0:03:04.6]} 9... gxf4 {[%clk 0:02:45.6]}
10. gxf4 {[%clk 0:03:05]} 10... Rg8 {[%clk 0:02:46.2]} 11. Bd3 {[%clk
0:03:02.2]} 11... Bd7 {[%clk 0:02:44.4]} 12. Qe2 {[%clk 0:03:02.7]} 12... cxd4
{[%clk 0:02:35.9]} 13. cxd4 {[%clk 0:03:02]} 13... Nb4 {[%clk 0:02:36.7]} 14. a3
{[%clk 0:02:52.8]} 14... Nxd3+ {[%clk 0:02:37.2]} 15. Qxd3 {[%clk 0:02:53.8]}
15... a6 {[%clk 0:02:38.6]} 16. a4 {[%clk 0:02:35.7]} 16... Bb4 {[%clk
0:02:37.4]} 17. Kf2 {[%clk 0:02:23.2]} 17... Ke7 {[%clk 0:02:24.9]} 18. b3
{[%clk 0:02:14.5]} 18... Rac8 {[%clk 0:02:24]} 19. Rac1 {[%clk 0:02:14.9]} 19...
Rxc1 {[%clk 0:01:41.7]} 20. Rxc1 {[%clk 0:02:14.7]} 20... Rg4 {[%clk 0:01:30.1]}
21. Rg1 {[%clk 0:02:13.2]} 21... Rxg1 {[%clk 0:01:30.3]} 22. Kxg1 {[%clk
0:02:13.9]} 22... Qg7+ {[%clk 0:01:28.1]} 23. Kf2 {[%clk 0:02:14.4]} 23... f6
{[%clk 0:01:22.5]} 24. Nf1 {[%clk 0:02:14.6]} 24... Be8 {[%clk 0:01:17]} 25. Ng3
{[%clk 0:02:13]} 25... Qg6 {[%clk 0:01:02.7]} 26. f5 {[%clk 0:02:08.7]} 26...
Qg4 {[%clk 0:01:03.3]} 27. Qc2 {[%clk 0:02:06.6]} 27... Bd6 {[%clk 0:01:03.5]}
28. fxe6 {[%clk 0:02:00.6]} 28... Bxg3+ {[%clk 0:00:41.1]} 29. hxg3 {[%clk
0:02:00.6]} 29... Qxe6 {[%clk 0:00:33.3]} 30. Nh4 {[%clk 0:01:58]} 30... Kd8
{[%clk 0:00:33.4]} 31. Qh7 {[%clk 0:01:48.1]} 31... Qc8 {[%clk 0:00:33.1]} 32.
Qxh6 {[%clk 0:01:42.8]} 32... Qc2+ {[%clk 0:00:33.6]} 33. Kg1 {[%clk 0:01:43.6]}
33... Qc1+ {[%clk 0:00:32.1]} 34. Kh2 {[%clk 0:01:44.6]} 34... Qc2+ {[%clk
0:00:32.3]} 35. Ng2 {[%clk 0:01:45.5]} 35... Ke7 {[%clk 0:00:31.3]} 36. a5
{[%clk 0:01:40.8]} 36... Bg6 {[%clk 0:00:21.5]} 37. Qg7+ {[%clk 0:01:39.5]}
37... Bf7 {[%clk 0:00:22.4]} 38. g4 {[%clk 0:01:35.4]} 38... Qxb3 {[%clk
0:00:22.4]} 39. Nh4 {[%clk 0:01:29.2]} 39... Qb2+ {[%clk 0:00:20.7]} 40. Kg3
{[%clk 0:01:30.2]} 40... Qc1 {[%clk 0:00:21.4]} 41. Nf5+ {[%clk 0:01:30.4]}
41... Ke6 {[%clk 0:00:22.9]} 42. Qf8 {[%clk 0:01:23.8]} 42... Qg1+ {[%clk
0:00:23]} 43. Kf3 {[%clk 0:01:24.7]} 43... Qf1+ {[%clk 0:00:23.9]} 44. Kg3
{[%clk 0:01:25.9]} 44... Qg1+ {[%clk 0:00:25]} 45. Kf3 {[%clk 0:01:27.1]} 45...
Qf1+ {[%clk 0:00:24.3]} 46. Kg3 {[%clk 0:01:28.1]} 46... Qg1+ {[%clk 0:00:22.6]}
47. Kh3 {[%clk 0:01:26.9]} 47... Qh1+ {[%clk 0:00:23.3]} 48. Kg3 {[%clk
0:01:28.1]} 48... Qg1+ {[%clk 0:00:24.2]} 49. Kf3 {[%clk 0:01:29.2]} 49... Qf1+
{[%clk 0:00:25.3]} 50. Kg3 {[%clk 0:01:30.1]} 50... Qg1+ {[%clk 0:00:26.5]}
1/2-1/2

[Event "*** Titled Tuesday 3|2 Blitz (Late)"]
[Site "Chess.com"]
[Date "2016.11.01"]
[Round "8"]
[White "FearlessKing64"]
[Black "cheese111"]
[Result "0-1"]
[WhiteElo "2154"]
[BlackElo "2267"]
[TimeControl "180+2"]
[EndTime "18:48:44 PDT"]
[Termination "cheese111 won on time"]

1. e4 {[%clk 0:03:01.9]} 1... d5 {[%clk 0:03:00.3]} 2. exd5 {[%clk 0:03:02.3]}
2... Nf6 {[%clk 0:03:01.3]} 3. Bb5+ {[%clk 0:03:02.1]} 3... Nbd7 {[%clk
0:02:57.3]} 4. Be2 {[%clk 0:03:01.6]} 4... Nxd5 {[%clk 0:02:55.2]} 5. d4 {[%clk
0:03:02.7]} 5... c6 {[%clk 0:02:53.5]} 6. Nf3 {[%clk 0:03:03.1]} 6... e6 {[%clk
0:02:45.2]} 7. O-O {[%clk 0:03:01.8]} 7... Bd6 {[%clk 0:02:45.3]} 8. c4 {[%clk
0:03:02.2]} 8... Nf4 {[%clk 0:02:45.4]} 9. Bxf4 {[%clk 0:02:33.4]} 9... Bxf4
{[%clk 0:02:47.3]} 10. d5 {[%clk 0:02:35.2]} 10... cxd5 {[%clk 0:02:41.4]} 11.
cxd5 {[%clk 0:02:35.5]} 11... exd5 {[%clk 0:02:40.7]} 12. Nc3 {[%clk 0:02:29.1]}
12... O-O {[%clk 0:02:24.3]} 13. Nxd5 {[%clk 0:02:29]} 13... Bd6 {[%clk
0:02:25.2]} 14. Nd4 {[%clk 0:02:13.1]} 14... Nf6 {[%clk 0:02:23.3]} 15. Nc3
{[%clk 0:01:56.6]} 15... Re8 {[%clk 0:02:15.2]} 16. Bf3 {[%clk 0:01:56.9]} 16...
Qb6 {[%clk 0:02:12.8]} 17. Qd2 {[%clk 0:01:29.5]} 17... Rd8 {[%clk 0:01:58.2]}
18. Na4 {[%clk 0:00:59.8]} 18... Qxd4 {[%clk 0:01:49.3]} 19. Qxd4 {[%clk
0:00:58.6]} 19... Bxh2+ {[%clk 0:01:49.8]} 20. Kxh2 {[%clk 0:01:00.5]} 20...
Rxd4 {[%clk 0:01:50.1]} 21. Rad1 {[%clk 0:00:56]} 21... Rxd1 {[%clk 0:01:45.2]}
22. Rxd1 {[%clk 0:00:57.3]} 22... Bg4 {[%clk 0:01:41.5]} 23. Bxg4 {[%clk
0:00:26]} 23... Nxg4+ {[%clk 0:01:43.4]} 24. Kg3 {[%clk 0:00:27.5]} 24... Ne5
{[%clk 0:01:40.1]} 25. f4 {[%clk 0:00:22.7]} 25... Nc6 {[%clk 0:01:30.5]} 26.
Rd7 {[%clk 0:00:20.3]} 26... b6 {[%clk 0:01:24.7]} 27. Nc3 {[%clk 0:00:17.2]}
27... h6 {[%clk 0:01:17.6]} 28. Nb5 {[%clk 0:00:11.7]} 28... a6 {[%clk
0:01:13.6]} 29. Nd6 {[%clk 0:00:12.2]} 29... Rd8 {[%clk 0:01:12.6]} 30. Rxd8+
{[%clk 0:00:08.8]} 30... Nxd8 {[%clk 0:01:14.5]} 31. Kf3 {[%clk 0:00:09.6]}
31... Kf8 {[%clk 0:01:12]} 32. Ke4 {[%clk 0:00:09.3]} 32... Ne6 {[%clk
0:01:12.4]} 33. f5 {[%clk 0:00:07.4]} 33... Nc5+ {[%clk 0:01:12.3]} 34. Kd5
{[%clk 0:00:07.7]} 34... Nd3 {[%clk 0:01:10.3]} 35. b3 {[%clk 0:00:05.4]} 35...
Nf4+ {[%clk 0:01:09.7]} 36. Kc6 {[%clk 0:00:05.9]} 36... Nxg2 {[%clk 0:01:10.5]}
37. Kxb6 {[%clk 0:00:07.3]} 37... h5 {[%clk 0:01:08.9]} 38. Kxa6 {[%clk
0:00:05.5]} 38... h4 {[%clk 0:01:09.4]} 39. Ne4 {[%clk 0:00:05.8]} 39... h3
{[%clk 0:01:09.9]} 40. Ng3 {[%clk 0:00:06.4]} 40... h2 {[%clk 0:01:01.1]} 41. b4
{[%clk 0:00:07.5]} 41... Ne3 {[%clk 0:00:57.7]} 42. b5 {[%clk 0:00:08.1]} 42...
Nxf5 {[%clk 0:00:58]} 43. Nh1 {[%clk 0:00:06.7]} 43... Ke8 {[%clk 0:00:38.6]}
44. Kb7 {[%clk 0:00:05.4]} 44... Kd7 {[%clk 0:00:35.1]} 45. a4 {[%clk
0:00:05.8]} 45... g5 {[%clk 0:00:30.4]} 46. a5 {[%clk 0:00:06.6]} 46... g4
{[%clk 0:00:29.9]} 47. a6 {[%clk 0:00:07.6]} 47... g3 {[%clk 0:00:30.1]} 48. a7
{[%clk 0:00:03.1]} 48... g2 {[%clk 0:00:30.3]} 0-1

[Event "*** Titled Tuesday 3|2 Blitz (Late)"]
[Site "Chess.com"]
[Date "2016.11.01"]
[Round "8"]
[White "wonderfultime"]
[Black "gmshanmeruga"]
[Result "1-0"]
[WhiteElo "2703"]
[BlackElo "2306"]
[TimeControl "180+2"]
[EndTime "18:49:18 PDT"]
[Termination "wonderfultime won by checkmate"]

1. d4 {[%clk 0:03:01.9]} 1... Nf6 {[%clk 0:02:59.1]} 2. c4 {[%clk 0:02:57.2]}
2... e6 {[%clk 0:02:58.8]} 3. Nf3 {[%clk 0:02:58.1]} 3... c5 {[%clk 0:02:57.1]}
4. d5 {[%clk 0:02:58.8]} 4... exd5 {[%clk 0:02:53.9]} 5. cxd5 {[%clk 0:03:00.7]}
5... d6 {[%clk 0:02:55.6]} 6. Nc3 {[%clk 0:03:01.7]} 6... g6 {[%clk 0:02:56.6]}
7. Bf4 {[%clk 0:03:02.7]} 7... Bg7 {[%clk 0:02:36.8]} 8. Qa4+ {[%clk 0:03:03.3]}
8... Bd7 {[%clk 0:02:31.2]} 9. Qb3 {[%clk 0:03:04]} 9... Qc7 {[%clk 0:02:29]}
10. e4 {[%clk 0:03:02.5]} 10... O-O {[%clk 0:02:25.7]} 11. Nd2 {[%clk
0:02:59.8]} 11... Nh5 {[%clk 0:02:21.2]} 12. Be3 {[%clk 0:02:59.1]} 12... f5
{[%clk 0:02:17.6]} 13. exf5 {[%clk 0:03:01]} 13... gxf5 {[%clk 0:02:15.6]} 14.
Be2 {[%clk 0:03:01.3]} 14... Be8 {[%clk 0:02:07.7]} 15. O-O {[%clk 0:02:39.9]}
15... a6 {[%clk 0:02:04.2]} 16. Nf3 {[%clk 0:02:23.2]} 16... h6 {[%clk 0:02:03]}
17. a4 {[%clk 0:02:23]} 17... Nd7 {[%clk 0:02:01]} 18. Rfe1 {[%clk 0:02:19.8]}
18... Nhf6 {[%clk 0:01:55.5]} 19. Bd3 {[%clk 0:02:16.2]} 19... Ng4 {[%clk
0:01:51.4]} 20. Bd2 {[%clk 0:02:13.2]} 20... Nde5 {[%clk 0:01:44.7]} 21. Nxe5
{[%clk 0:02:12.4]} 21... Bxe5 {[%clk 0:01:41.5]} 22. h3 {[%clk 0:02:09.5]} 22...
Bh2+ {[%clk 0:01:39.4]} 23. Kh1 {[%clk 0:01:41.6]} 23... Nxf2+ {[%clk
0:01:28.8]} 24. Kxh2 {[%clk 0:01:42.6]} 24... Nxd3 {[%clk 0:01:30.3]} 25. Re6
{[%clk 0:01:44.1]} 25... c4 {[%clk 0:01:23]} 26. Qd1 {[%clk 0:01:42.4]} 26...
Bf7 {[%clk 0:01:18.7]} 27. Rxh6 {[%clk 0:01:42.8]} 27... Qe7 {[%clk 0:01:15.5]}
28. Qf3 {[%clk 0:01:25.2]} 28... Qe5+ {[%clk 0:01:16.6]} 29. Kh1 {[%clk
0:01:26.1]} 29... b5 {[%clk 0:01:08.5]} 30. Rf1 {[%clk 0:01:11.4]} 30... b4
{[%clk 0:01:02.4]} 31. Ne2 {[%clk 0:01:12.6]} 31... Rae8 {[%clk 0:00:59.2]} 32.
Nf4 {[%clk 0:01:11.2]} 32... Nxf4 {[%clk 0:00:54.2]} 33. Bxf4 {[%clk 0:01:11.8]}
33... Qg7 {[%clk 0:00:51.9]} 34. Rxd6 {[%clk 0:01:10.7]} 34... a5 {[%clk
0:00:48.5]} 35. Bh6 {[%clk 0:01:11.4]} 35... Qe5 {[%clk 0:00:44.4]} 36. Bxf8
{[%clk 0:01:08.4]} 36... Rxf8 {[%clk 0:00:42.1]} 37. Qf4 {[%clk 0:00:40.7]}
37... Qxf4 {[%clk 0:00:36.4]} 38. Rxf4 {[%clk 0:00:42.6]} 38... c3 {[%clk
0:00:35.5]} 39. bxc3 {[%clk 0:00:43.4]} 39... bxc3 {[%clk 0:00:37.4]} 40. Rc4
{[%clk 0:00:44.3]} 40... Be8 {[%clk 0:00:31.1]} 41. Rxc3 {[%clk 0:00:43.4]}
41... Bxa4 {[%clk 0:00:31.9]} 42. Ra6 {[%clk 0:00:43.4]} 42... Bb5 {[%clk
0:00:20.9]} 43. Rxa5 {[%clk 0:00:44.2]} 43... Bf1 {[%clk 0:00:22]} 44. d6 {[%clk
0:00:45]} 44... Rd8 {[%clk 0:00:22.9]} 45. Rxf5 {[%clk 0:00:45.9]} 45... Ba6
{[%clk 0:00:21.6]} 46. Rd5 {[%clk 0:00:43.5]} 46... Kf7 {[%clk 0:00:22.6]} 47.
Rd4 {[%clk 0:00:42.6]} 47... Ke6 {[%clk 0:00:23.6]} 48. Re3+ {[%clk 0:00:43.9]}
48... Kd7 {[%clk 0:00:24.8]} 49. Re7+ {[%clk 0:00:45]} 49... Kc6 {[%clk
0:00:26.3]} 50. Rc7+ {[%clk 0:00:46.9]} 50... Kb6 {[%clk 0:00:27.1]} 51. Rc1
{[%clk 0:00:47.8]} 51... Bb5 {[%clk 0:00:28.1]} 52. h4 {[%clk 0:00:47.8]} 52...
Rh8 {[%clk 0:00:28.8]} 53. Kh2 {[%clk 0:00:48.9]} 53... Be2 {[%clk 0:00:28.6]}
54. Rb4+ {[%clk 0:00:49.1]} 54... Ka5 {[%clk 0:00:29.4]} 55. Re4 {[%clk
0:00:49.8]} 55... Bh5 {[%clk 0:00:28.1]} 56. Rc5+ {[%clk 0:00:50.8]} 56... Kb6
{[%clk 0:00:28.8]} 57. Rc7 {[%clk 0:00:48.1]} 57... Bg6 {[%clk 0:00:24.2]} 58.
Rb4+ {[%clk 0:00:48.9]} 58... Ka6 {[%clk 0:00:25.1]} 59. d7 {[%clk 0:00:48.8]}
59... Rd8 {[%clk 0:00:18]} 60. Rc8 {[%clk 0:00:49.6]} 60... Be4 {[%clk
0:00:15.5]} 61. Rxd8 {[%clk 0:00:50]} 61... Bc6 {[%clk 0:00:15.4]} 62. Ra8+
{[%clk 0:00:51.1]} 62... Bxa8 {[%clk 0:00:16.2]} 63. d8=Q {[%clk 0:00:52.6]}
63... Bxg2 {[%clk 0:00:17.9]} 64. Qb6# {[%clk 0:00:53.5]} 1-0

[Event "*** Titled Tuesday 3|2 Blitz (Late)"]
[Site "Chess.com"]
[Date "2016.11.01"]
[Round "8"]
[White "chessking2151"]
[Black "pedromartinez91"]
[Result "1-0"]
[WhiteElo "2335"]
[BlackElo "2283"]
[TimeControl "180+2"]
[EndTime "18:49:38 PDT"]
[Termination "chessking2151 won by resignation"]

1. e4 {[%clk 0:03:02]} 1... c5 {[%clk 0:02:58.1]} 2. Nf3 {[%clk 0:03:02.1]} 2...
Nc6 {[%clk 0:02:59.6]} 3. Bb5 {[%clk 0:03:02.8]} 3... g6 {[%clk 0:02:55.3]} 4.
Bxc6 {[%clk 0:03:03.1]} 4... bxc6 {[%clk 0:02:55.9]} 5. O-O {[%clk 0:03:01.9]}
5... Bg7 {[%clk 0:02:56.8]} 6. d3 {[%clk 0:03:00.4]} 6... Rb8 {[%clk 0:02:56.3]}
7. c3 {[%clk 0:02:53.7]} 7... d6 {[%clk 0:02:54.7]} 8. Nbd2 {[%clk 0:02:52.9]}
8... f6 {[%clk 0:02:54.5]} 9. Rb1 {[%clk 0:02:44.2]} 9... Nh6 {[%clk 0:02:54.6]}
10. Qa4 {[%clk 0:02:42.2]} 10... Qb6 {[%clk 0:02:48.3]} 11. Nc4 {[%clk
0:02:42.2]} 11... Qb5 {[%clk 0:02:47.7]} 12. Qxa7 {[%clk 0:02:29]} 12... Rb7
{[%clk 0:02:40.4]} 13. Qa5 {[%clk 0:02:24]} 13... O-O {[%clk 0:02:40.6]} 14. a4
{[%clk 0:02:03.6]} 14... Qb3 {[%clk 0:02:39.5]} 15. Bf4 {[%clk 0:01:12.4]} 15...
g5 {[%clk 0:02:38]} 16. Bg3 {[%clk 0:01:08.8]} 16... Be6 {[%clk 0:02:36.9]} 17.
Rfc1 {[%clk 0:01:02.9]} 17... Rbb8 {[%clk 0:02:05.7]} 18. Nfd2 {[%clk
0:00:59.6]} 18... Qb7 {[%clk 0:02:05.5]} 19. b4 {[%clk 0:00:51.1]} 19... cxb4
{[%clk 0:02:03.8]} 20. Rxb4 {[%clk 0:00:51.5]} 20... Qd7 {[%clk 0:02:03.8]} 21.
Rcb1 {[%clk 0:00:38.7]} 21... Ra8 {[%clk 0:02:04.1]} 22. Qb6 {[%clk 0:00:39]}
22... f5 {[%clk 0:02:03.3]} 23. exf5 {[%clk 0:00:37]} 23... Nxf5 {[%clk
0:02:03.8]} 24. Ne4 {[%clk 0:00:35.8]} 24... Nxg3 {[%clk 0:02:00.6]} 25. hxg3
{[%clk 0:00:37.7]} 25... h6 {[%clk 0:01:59.5]} 26. a5 {[%clk 0:00:37.2]} 26...
Bd5 {[%clk 0:01:57.6]} 27. Qb7 {[%clk 0:00:35]} 27... Qxb7 {[%clk 0:01:56.1]}
28. Rxb7 {[%clk 0:00:36.9]} 28... c5 {[%clk 0:01:57.3]} 29. Rxe7 {[%clk
0:00:32.2]} 29... Bxe4 {[%clk 0:01:51.6]} 30. dxe4 {[%clk 0:00:29.3]} 30... Bxc3
{[%clk 0:01:53.2]} 31. Rbb7 {[%clk 0:00:27.9]} 31... Bd4 {[%clk 0:01:51.9]} 32.
Nxd6 {[%clk 0:00:28.3]} 32... Rxf2 {[%clk 0:01:49.8]} 33. Kh2 {[%clk 0:00:27.4]}
33... Rxa5 {[%clk 0:01:44.4]} 34. Nf5 {[%clk 0:00:18.8]} 34... Ra8 {[%clk
0:01:32.4]} 35. Nxh6+ {[%clk 0:00:16.7]} 35... Kf8 {[%clk 0:01:33.4]} 36. Rf7+
{[%clk 0:00:13.7]} 36... Rxf7 {[%clk 0:01:33.4]} 37. Rxf7+ {[%clk 0:00:15.6]}
37... Ke8 {[%clk 0:01:34.2]} 38. Rf5 {[%clk 0:00:13.8]} 38... c4 {[%clk
0:01:32.9]} 39. Rd5 {[%clk 0:00:14.8]} 39... Rd8 {[%clk 0:01:31.5]} 40. Nf5
{[%clk 0:00:11.1]} 40... Rxd5 {[%clk 0:01:30.6]} 41. exd5 {[%clk 0:00:13]} 41...
Be5 {[%clk 0:01:32.1]} 42. Ne3 {[%clk 0:00:13.9]} 42... c3 {[%clk 0:01:32.8]}
43. Kh3 {[%clk 0:00:15.2]} 43... Kd7 {[%clk 0:01:26.3]} 44. Kg4 {[%clk
0:00:16.5]} 44... Kd6 {[%clk 0:01:27.8]} 45. Kxg5 {[%clk 0:00:17.9]} 45... Bd4
{[%clk 0:01:29.4]} 46. Nc2 {[%clk 0:00:17.2]} 46... Kxd5 {[%clk 0:01:30.4]} 47.
Kf5 {[%clk 0:00:18.8]} 47... Kc4 {[%clk 0:01:29.9]} 48. Ke4 {[%clk 0:00:19.9]}
48... Bg7 {[%clk 0:01:30.3]} 49. g4 {[%clk 0:00:21.3]} 49... Bh6 {[%clk
0:01:30.8]} 50. g3 {[%clk 0:00:22.2]} 50... Bg5 {[%clk 0:01:31.9]} 51. Ne1
{[%clk 0:00:17.8]} 51... Bc1 {[%clk 0:01:30.7]} 52. Nd3 {[%clk 0:00:15.8]} 52...
Bd2 {[%clk 0:01:31.4]} 53. Ne5+ {[%clk 0:00:15.3]} 53... Kb3 {[%clk 0:01:31.7]}
54. Nc6 {[%clk 0:00:16.7]} 54... Kc4 {[%clk 0:01:29.6]} 55. Ne5+ {[%clk
0:00:17.1]} 55... Kb3 {[%clk 0:01:28.9]} 56. Nf3 {[%clk 0:00:16.9]} 56... Bg5
{[%clk 0:01:23.8]} 57. Nd4+ {[%clk 0:00:16.3]} 57... Kc4 {[%clk 0:01:23.5]} 58.
Nc2 {[%clk 0:00:17.1]} 58... Bd2 {[%clk 0:01:24.4]} 59. Nd4 {[%clk 0:00:17.8]}
59... Bh6 {[%clk 0:01:22]} 60. Nc2 {[%clk 0:00:18.8]} 60... Bg5 {[%clk
0:01:19.4]} 61. Ne1 {[%clk 0:00:15.5]} 61... Kb3 {[%clk 0:01:16.4]} 62. Kd3
{[%clk 0:00:16.2]} 62... Kb2 {[%clk 0:01:16.5]} 63. Nc2 {[%clk 0:00:17.5]} 63...
Bf6 {[%clk 0:01:16.8]} 64. Ne3 {[%clk 0:00:15.6]} 64... Bg5 {[%clk 0:01:13.9]}
65. Nd1+ {[%clk 0:00:16.5]} 65... Kc1 {[%clk 0:01:11.9]} 66. Nxc3 {[%clk
0:00:17.7]} 66... Bf6 {[%clk 0:01:11]} 67. Ne4 {[%clk 0:00:18]} 67... Be5 {[%clk
0:01:12]} 68. g5 {[%clk 0:00:18.9]} 68... Kd1 {[%clk 0:01:13.3]} 69. g6 {[%clk
0:00:19.1]} 69... Ke1 {[%clk 0:01:14.2]} 70. g4 {[%clk 0:00:19.6]} 70... Kf1
{[%clk 0:01:15.3]} 71. g5 {[%clk 0:00:21]} 71... Kg2 {[%clk 0:01:16.3]} 72. Nf6
{[%clk 0:00:22]} 72... Kg3 {[%clk 0:01:16.9]} 73. g7 {[%clk 0:00:23]} 73... Bxf6
{[%clk 0:01:16.8]} 1-0